fUSD/lending_fUSD_20240729
["ID","MTS","AMOUNT","RATE_DAILY","PERIOD"]
[333589856,1722262239006,-500.0,0.00010958,2]
[333589857,1722262239015,-500.0,0.00010958,2]
[333589858,1722262239025,-500.0,0.00010958,2]
[333589859,1722262239035,-500.0,0.00010958,2]
[333589860,1722262239045,-500.0,0.00010958,2]
[333589861,1722262239054,-500.0,0.00010958,2]
[333589862,1722262239064,-500.0,0.00010958,2]
[333589863,1722262239073,-500.0,0.00010958,2]
[333589864,1722262239083,-341.90794269,0.00010958,2]
[333589865,1722262239136,-500.0,0.00010958,2]
[333589866,1722262239146,-500.0,0.00010958,2]
[333589867,1722262239155,-395.65810738,0.00010958,2]
[333589868,1722262239165,-500.0,0.00010958,2]
[333589869,1722262239174,-500.0,0.00010958,2]
[333589870,1722262239184,-551.47,0.00010958,2]
[333589871,1722262239194,-500.0,0.00010958,2]
[333589872,1722262239203,-500.0,0.00010958,2]
[333589873,1722262239215,-551.47,0.00010958,2]
[333589874,1722262239225,-500.0,0.00010958,2]
[333589875,1722262239235,-500.0,0.00010958,2]
[333589876,1722262239244,-500.0,0.00010958,2]
[333589877,1722262239254,-500.0,0.00010958,2]
[333589878,1722262239263,-500.0,0.00010958,2]
[333589879,1722262239274,-500.0,0.00010958,2]
[333589880,1722262239283,-500.0,0.00010958,2]
[333589881,1722262239293,-506.43,0.00010958,2]
[333589882,1722262239303,-530.61831942,0.00010958,2]
[333589883,1722262239312,-500.0,0.00010958,2]
[333589884,1722262239324,-516.12412507,0.00010958,2]
[333589885,1722262239334,-500.0,0.00010958,2]
[333589886,1722262239344,-500.0,0.00010958,2]
[333589887,1722262239353,-500.0,0.00010958,2]
[333589888,1722262239363,-638.91,0.00010958,2]
[333589889,1722262239372,-500.0,0.00010958,2]
[333589890,1722262239382,-638.91,0.00010958,2]
[333589891,1722262239392,-500.0,0.00010958,2]
[333589892,1722262239402,-500.0,0.00010958,2]
[333589893,1722262239412,-500.0,0.00010958,2]
[333589894,1722262239424,-500.0,0.00010958,2]
[333589895,1722262239434,-500.0,0.00010958,2]
[333589896,1722262239444,-500.0,0.00010958,2]
[333589897,1722262239454,-500.0,0.00010958,2]
[333589898,1722262239466,-500.0,0.00010958,2]
[333589899,1722262239476,-551.97987382,0.00010958,2]
[333589900,1722262239486,-3093.98,0.00010958,2]
[333589901,1722262239496,-3093.98,0.00010958,2]
[333589902,1722262239505,-823.76,0.00010958,2]
[333589903,1722262239519,-500.0,0.00010958,2]
[333589904,1722262239529,-500.0,0.00010958,2]
[333589905,1722262239539,-500.0,0.00010958,2]
[333589906,1722262239549,-500.0,0.00010958,2]
[333589907,1722262239560,-500.0,0.00010958,2]
[333589908,1722262239569,-500.0,0.00010958,2]
[333589909,1722262239579,-500.0,0.00010958,2]
[333589910,1722262239588,-541.29766924,0.00010958,2]
[333589911,1722262239598,-580.94,0.00010958,2]
[333589912,1722262239610,-580.94,0.00010958,2]
[333589913,1722262239619,-580.94,0.00010958,2]
[333589914,1722262239629,-501.31,0.00010958,2]
[333589915,1722262239640,-500.0,0.00010958,2]
[333589916,1722262239649,-500.0,0.00010958,2]
[333589917,1722262239658,-500.0,0.00010958,2]
[333589918,1722262239669,-500.0,0.00010958,2]
[333589919,1722262239678,-501.31,0.00010958,2]
[333589920,1722262239688,-1000.0,0.00010959,2]
[333589921,1722262239698,-1000.0,0.00010959,2]
[333589922,1722262239707,-1000.0,0.00010959,2]
[333589923,1722262239721,-1000.0,0.00010959,2]
[333589924,1722262239730,-1000.0,0.00010959,2]
[333589925,1722262239740,-1000.0,0.00010959,2]
[333589926,1722262239750,-200.0,0.00010959,2]
[333589927,1722262239759,-250.0,0.00010959,2]
[333589928,1722262239769,-295.52,0.00010959,2]
[333589929,1722262239779,-102594.54472981,0.0001098,2]
[333589930,1722262239788,-662.76,0.00010983,2]
[333589931,1722262239797,-500.0,0.00010983,2]
[333589932,1722262239807,-603.35289787,0.00010983,2]
[333589933,1722262239817,-500.0,0.00010983,2]
[333589935,1722262239826,-500.0,0.00010983,2]
[333589936,1722262239835,-500.0,0.00010983,2]
[333589937,1722262239846,-500.0,0.00010983,2]
[333589938,1722262239855,-500.0,0.00010983,2]
[333589939,1722262239864,-300.37346181,0.00010983,2]
[333589940,1722262239874,-500.0,0.00010983,2]
[333589941,1722262239884,-551.47,0.00010983,2]
[333589942,1722262239893,-3093.98,0.00010983,2]
[333589943,1722262239903,-9753.117,0.00010983,2]
[333589944,1722262239912,-1670.0,0.00010983,2]
[333589945,1722262239921,-1614.936,0.00010983,2]
[333589946,1722262239931,-1202.0,0.00010983,2]
[333589947,1722262239940,-152.30416236,0.00010986,2]
[333589948,1722262239949,-500.0,0.00010987,2]
[333589950,1722262239959,-609.35,0.00010987,2]
[333589952,1722262239972,-500.0,0.00010987,2]
[333589953,1722262239981,-500.0,0.00010988,2]
[333589954,1722262239990,-500.0,0.00010988,2]
[333589955,1722262239999,-538.42644982,0.00010988,2]
[333589956,1722262240012,-506.80282644,0.00010988,2]
[333589957,1722262240021,-500.0,0.00010988,2]
[333589958,1722262240030,-500.0,0.00010988,2]
[333589960,1722262240039,-500.0,0.00010988,2]
[333589962,1722262240048,-550.37,0.00010988,2]
[333589965,1722262240058,-500.0,0.00010988,2]
[333589966,1722262240068,-500.0,0.00010988,2]
[333589968,1722262240077,-616.33,0.00010988,2]
[333589970,1722262240086,-500.0,0.00010988,2]
[333589972,1722262240096,-500.0,0.00010988,2]
[333589974,1722262240105,-972.94,0.00010988,2]
[333589976,1722262240115,-972.94,0.00010988,2]
[333589977,1722262240124,-248.17529377,0.00010988,2]
[333589978,1722262240133,-2899.27,0.00010988,2]
[333589979,1722262240143,-1955.78,0.00010988,2]
[333589980,1722262240153,-500.0,0.00010988,2]
[333589981,1722262240162,-500.0,0.00010988,2]
[333589982,1722262240172,-500.0,0.00010988,2]
[333589983,1722262240181,-500.0,0.00010988,2]
[333589984,1722262240190,-3055.51,0.00010988,2]
[333589985,1722262240200,-500.0,0.00010988,2]
[333589986,1722262240213,-500.0,0.00010988,2]
[333589987,1722262240222,-500.0,0.00010988,2]
[333589988,1722262240231,-500.0,0.00010988,2]
[333589989,1722262240241,-500.0,0.00010988,2]
[333589990,1722262240251,-500.0,0.00010988,2]
[333589991,1722262240260,-500.0,0.00010988,2]
[333589992,1722262240269,-4369.33,0.00010988,2]
[333589993,1722262240279,-500.0,0.00010988,2]
[333589994,1722262240288,-500.0,0.00010988,2]
[333589995,1722262240297,-500.0,0.00010988,2]
[333589996,1722262240306,-500.0,0.00010988,2]
[333589997,1722262240316,-620.02455553,0.00010988,2]
[333589998,1722262240325,-521.43,0.00010988,2]
[333589999,1722262240335,-500.0,0.00010988,2]
[333590000,1722262240344,-500.0,0.00010988,2]
[333590001,1722262240353,-500.0,0.00010988,2]
[333590002,1722262240363,-500.0,0.00010989,2]
[333590003,1722262240372,-500.0,0.00010989,2]
[333590004,1722262240381,-500.0,0.00010989,2]
[333590005,1722262240390,-500.0,0.00010989,2]
[333590006,1722262240400,-500.0,0.00010989,2]
[333590007,1722262240409,-220.87124507,0.00010989,2]
[333590008,1722262240418,-500.0,0.00010989,2]
[333590009,1722262240427,-500.0,0.00010989,2]
[333590010,1722262240436,-500.0,0.00010989,2]
[333590011,1722262240445,-500.0,0.00010989,2]
[333590012,1722262240454,-500.0,0.00010989,2]
[333590013,1722262240469,-500.0,0.00010989,2]
[333590014,1722262240478,-500.0,0.00010989,2]
[333590015,1722262240487,-508.47830647,0.00010989,2]
[333590016,1722262240496,-501.58827145,0.00010989,2]
[333590017,1722262240505,-550.37,0.00010989,2]
[333590019,1722262240516,-500.0,0.00010989,2]
[333590021,1722262240525,-500.0,0.00010989,2]
[333590022,1722262240537,-500.0,0.00010989,2]
[333590024,1722262240547,-500.0,0.00010989,2]
[333590026,1722262240556,-500.0,0.00010989,2]
[333590028,1722262240565,-500.0,0.00010989,2]
[333590030,1722262240574,-500.0,0.00010989,2]
[333590032,1722262240584,-1338.43,0.00010989,2]
[333590034,1722262240593,-616.33,0.00010989,2]
[333590036,1722262240603,-500.0,0.00010989,2]
[333590038,1722262240613,-517.28,0.00010989,2]
[333590040,1722262240623,-500.0,0.00010989,2]
[333590042,1722262240632,-872.17,0.00010989,2]
[333590044,1722262240641,-500.0,0.00010989,2]
[333590046,1722262240651,-500.0,0.00010989,2]
[333590048,1722262240660,-548.64730089,0.00010989,2]
[333590050,1722262240670,-500.0,0.00010989,2]
[333590051,1722262240679,-699.51,0.00010989,2]
[333590053,1722262240687,-500.0,0.00010989,2]
[333590055,1722262240696,-644.01420702,0.00010989,2]
[333590057,1722262240706,-500.0,0.00010989,2]
[333590059,1722262240717,-500.0,0.00010989,2]
[333590061,1722262240726,-192.05945889,0.00010989,2]
[333590063,1722262240735,-500.0,0.00010989,2]
[333590065,1722262240744,-500.0,0.00010989,2]
[333590067,1722262240754,-692.2,0.00010989,2]
[333590069,1722262240763,-500.0,0.00010989,2]
[333590071,1722262240772,-500.0,0.00010989,2]
[333590073,1722262240782,-500.0,0.00010989,2]
[333590075,1722262240791,-500.0,0.00010989,2]
[333590077,1722262240800,-500.0,0.00010989,2]
[333590079,1722262240810,-500.0,0.00010989,2]
[333590081,1722262240819,-356.6,0.00010989,2]
[333590083,1722262240830,-500.0,0.00010989,2]
[333590085,1722262240839,-500.0,0.00010989,2]
[333590087,1722262240849,-500.0,0.00010989,2]
[333590089,1722262240858,-480.67763639,0.00010989,2]
[333590090,1722262240867,-242.77,0.00010989,2]
[333590091,1722262240876,-500.0,0.00010989,2]
[333590092,1722262240885,-500.0,0.00010989,2]
[333590093,1722262240895,-500.0,0.00010989,2]
[333590094,1722262240904,-500.0,0.00010989,2]
[333590095,1722262240913,-529.40049982,0.00010989,2]
[333590096,1722262240922,-500.0,0.00010989,2]
[333590097,1722262240931,-500.0,0.00010989,2]
[333590098,1722262240940,-500.0,0.00010989,2]
[333590099,1722262240949,-500.0,0.00010989,2]
[333590100,1722262240959,-500.0,0.00010989,2]
[333590101,1722262240971,-500.0,0.00010989,2]
[333590102,1722262240980,-500.0,0.00010989,2]
[333590103,1722262240989,-500.0,0.00010989,2]
[333590105,1722262240999,-500.0,0.00010989,2]
[333590107,1722262241008,-500.0,0.00010989,2]
[333590109,1722262241017,-500.0,0.00010989,2]
[333590110,1722262241026,-500.0,0.00010989,2]
[333590112,1722262241035,-500.0,0.00010989,2]
[333590114,1722262241044,-500.0,0.00010989,2]
[333590116,1722262241053,-580.94,0.00010989,2]
[333590118,1722262241062,-500.0,0.00010989,2]
[333590119,1722262241071,-500.0,0.00010996,2]
[333590121,1722262241081,-500.0,0.00010996,2]
[333590123,1722262241090,-972.94,0.00010996,2]
[333590125,1722262241099,-500.0,0.00010996,2]
[333590127,1722262241109,-500.0,0.00010996,2]
[333590129,1722262241118,-557.88621053,0.00010996,2]
[333590131,1722262241128,-500.0,0.00010996,2]
[333590133,1722262241137,-500.0,0.00010996,2]
[333590135,1722262241146,-500.0,0.00010996,2]
[333590137,1722262241156,-500.0,0.00010996,2]
[333590139,1722262241165,-500.0,0.00010996,2]
[333590141,1722262241175,-436.04,0.00010996,2]
[333590143,1722262241185,-2899.27,0.00010996,2]
[333590145,1722262241194,-500.0,0.00010996,2]
[333590147,1722262241203,-779.19,0.00010996,2]
[333590149,1722262241214,-500.0,0.00010996,2]
[333590151,1722262241223,-500.0,0.00010996,2]
[333590153,1722262241233,-2928.97,0.00010996,2]
[333590155,1722262241243,-500.0,0.00010996,2]
[333590157,1722262241253,-500.0,0.00010996,2]
[333590159,1722262241262,-500.0,0.00010996,2]
[333590161,1722262241271,-500.0,0.00010996,2]
[333590163,1722262241281,-500.0,0.00010996,2]
[333590165,1722262241291,-500.0,0.00010996,2]
[333590167,1722262241300,-500.0,0.00010996,2]
[333590169,1722262241310,-1955.78,0.00010996,2]
[333590171,1722262241319,-500.0,0.00010996,2]
[333590173,1722262241329,-500.0,0.00010996,2]
[333590175,1722262241338,-500.0,0.00010996,2]
[333590177,1722262241347,-829.66,0.00010996,2]
[333590179,1722262241357,-533.04,0.00010996,2]
[333590181,1722262241367,-500.0,0.00010996,2]
[333590183,1722262241378,-500.0,0.00010996,2]
[333590185,1722262241388,-235.22196646,0.00010996,2]
[333590187,1722262241399,-958.88,0.00010996,2]
[333590189,1722262241410,-500.0,0.00010996,2]
[333590191,1722262241421,-482.0982683,0.00010996,2]
[333590193,1722262241432,-500.0,0.00010996,2]
[333590195,1722262241443,-500.0,0.00010996,2]
[333590197,1722262241455,-688.53,0.00010996,2]
[333590200,1722262241471,-3055.51,0.00010996,2]
[333590202,1722262241483,-500.0,0.00010996,2]
[333590204,1722262241494,-500.0,0.00010996,2]
[333590206,1722262241506,-500.0,0.00010996,2]
[333590208,1722262241522,-500.0,0.00010996,2]
[333590210,1722262241532,-1025.11,0.00010996,2]
[333590212,1722262241542,-698.9,0.00010996,2]
[333590214,1722262241552,-500.0,0.00010996,2]
[333590216,1722262241564,-500.0,0.00010996,2]
[333590218,1722262241574,-1133.08,0.00010996,2]
[333590220,1722262241583,-662.76,0.00010996,2]
[333590222,1722262241593,-1122.64,0.00010996,2]
[333590224,1722262241603,-500.0,0.00010996,2]
[333590226,1722262241613,-500.0,0.00010996,2]
[333590228,1722262241623,-500.0,0.00010996,2]
[333590230,1722262241633,-500.0,0.00010996,2]
[333590232,1722262241643,-246.97972315,0.00010996,2]
[333590234,1722262241654,-500.0,0.00010996,2]
[333590236,1722262241663,-500.0,0.00010996,2]
[333590238,1722262241673,-714.5,0.00010996,2]
[333590240,1722262241682,-3161.57,0.00010996,2]
[333590242,1722262241692,-1233.04,0.00010996,2]
[333590243,1722262241702,-500.0,0.00010996,2]
[333590245,1722262241711,-4369.33,0.00010996,2]
[333590248,1722262241725,-500.0,0.00010996,2]
[333590250,1722262241734,-500.0,0.00010996,2]
[333590252,1722262241744,-500.0,0.00010996,2]
[333590254,1722262241754,-500.0,0.00010996,2]
[333590256,1722262241763,-500.0,0.00010996,2]
[333590258,1722262241773,-500.0,0.00010996,2]
[333590260,1722262241783,-640.60815407,0.00010996,2]
[333590262,1722262241794,-500.0,0.00010996,2]
[333590264,1722262241804,-500.0,0.00010996,2]
[333590266,1722262241814,-500.0,0.00010996,2]
[333590268,1722262241824,-500.0,0.00010996,2]
[333590270,1722262241834,-570.8,0.00010996,2]
[333590272,1722262241844,-500.0,0.00010996,2]
[333590274,1722262241853,-521.43,0.00010996,2]
[333590276,1722262241863,-500.0,0.00010996,2]
[333590278,1722262241873,-500.0,0.00010996,2]
[333590280,1722262241882,-500.0,0.00010996,2]
[333590282,1722262241892,-551.47,0.00010996,2]
[333590284,1722262241901,-500.0,0.00010996,2]
[333590286,1722262241911,-638.91,0.00010996,2]
[333590288,1722262241920,-500.0,0.00010996,2]
[333590289,1722262241930,-3093.98,0.00010996,2]
[333590290,1722262241939,-500.0,0.00010996,2]
[333590291,1722262241948,-581.0,0.00010997,2]
[333590292,1722262241958,-152.30416236,0.00010997,2]
[333590293,1722262241968,-418.32041001,0.00010997,2]
[333590294,1722262241979,-500.0,0.00010997,2]
[333590295,1722262241988,-500.0,0.00010997,2]
[333590296,1722262241998,-500.0,0.00010997,2]
[333590297,1722262242007,-361.595911,0.00010997,2]
[333590298,1722262242017,-500.0,0.00010997,2]
[333590299,1722262242026,-500.0,0.00010997,2]
[333590301,1722262242035,-500.0,0.00010997,2]
[333590303,1722262242045,-500.0,0.00010997,2]
[333590305,1722262242054,-500.0,0.00010997,2]
[333590307,1722262242064,-500.0,0.00010997,2]
[333590309,1722262242073,-500.0,0.00010997,2]
[333590311,1722262242083,-500.0,0.00010997,2]
[333590313,1722262242093,-545.09185975,0.00010997,2]
[333590315,1722262242102,-500.0,0.00010997,2]
[333590317,1722262242112,-500.0,0.00010997,2]
[333590319,1722262242121,-627.80008803,0.00010997,2]
[333590321,1722262242131,-500.0,0.00010997,2]
[333590323,1722262242141,-500.0,0.00010997,2]
[333590325,1722262242151,-500.0,0.00010997,2]
[333590327,1722262242160,-500.0,0.00010997,2]
[333590329,1722262242170,-550.37,0.00010997,2]
[333590331,1722262242180,-500.0,0.00010997,2]
[333590333,1722262242190,-500.0,0.00010997,2]
[333590335,1722262242200,-500.0,0.00010997,2]
[333590337,1722262242210,-500.0,0.00010997,2]
[333590339,1722262242224,-445.88657126,0.00010997,2]
[333590341,1722262242233,-500.0,0.00010997,2]
[333590343,1722262242244,-500.0,0.00010997,2]
[333590345,1722262242254,-214.51856252,0.00010997,2]
[333590347,1722262242264,-500.0,0.00010997,2]
[333590349,1722262242274,-295.25209346,0.00010997,2]
[333590351,1722262242284,-1338.43,0.00010997,2]
[333590353,1722262242295,-1338.43,0.00010997,2]
[333590355,1722262242306,-616.33,0.00010997,2]
[333590357,1722262242316,-500.0,0.00010997,2]
[333590359,1722262242327,-500.0,0.00010997,2]
[333590361,1722262242337,-517.28,0.00010997,2]
[333590363,1722262242348,-517.28,0.00010997,2]
[333590365,1722262242358,-506.04224854,0.00010997,2]
[333590367,1722262242368,-872.17,0.00010997,2]
[333590369,1722262242378,-872.17,0.00010997,2]
[333590371,1722262242388,-494.38026721,0.00010997,2]
[333590373,1722262242398,-221.03323979,0.00010997,2]
[333590375,1722262242407,-500.0,0.00010997,2]
[333590377,1722262242417,-500.0,0.00010997,2]
[333590379,1722262242427,-500.0,0.00010997,2]
[333590381,1722262242437,-699.51,0.00010997,2]
[333590383,1722262242447,-699.51,0.00010997,2]
[333590385,1722262242457,-972.94,0.00010997,2]
[333590387,1722262242472,-500.0,0.00010997,2]
[333590389,1722262242482,-568.39225271,0.00010997,2]
[333590391,1722262242493,-500.0,0.00010997,2]
[333590393,1722262242503,-500.0,0.00010997,2]
[333590395,1722262242513,-500.0,0.00010997,2]
[333590397,1722262242523,-500.0,0.00010997,2]
[333590399,1722262242535,-500.0,0.00010997,2]
[333590401,1722262242545,-500.0,0.00010997,2]
[333590403,1722262242556,-500.0,0.00010997,2]
[333590405,1722262242566,-344.0226698,0.00010997,2]
[333590407,1722262242576,-500.0,0.00010997,2]
[333590409,1722262242587,-692.2,0.00010997,2]
[333590411,1722262242597,-692.2,0.00010997,2]
[333590413,1722262242607,-500.0,0.00010997,2]
[333590415,1722262242619,-500.0,0.00010997,2]
[333590417,1722262242629,-500.0,0.00010997,2]
[333590419,1722262242638,-500.0,0.00010997,2]
[333590421,1722262242648,-500.0,0.00010997,2]
[333590423,1722262242657,-500.0,0.00010997,2]
[333590425,1722262242668,-500.0,0.00010997,2]
[333590427,1722262242678,-500.0,0.00010997,2]
[333590429,1722262242688,-500.0,0.00010997,2]
[333590431,1722262242698,-500.0,0.00010997,2]
[333590433,1722262242707,-500.0,0.00010997,2]
[333590435,1722262242721,-500.0,0.00010997,2]
[333590437,1722262242732,-500.0,0.00010997,2]
[333590440,1722262242741,-500.0,0.00010997,2]
[333590442,1722262242751,-500.0,0.00010997,2]
[333590444,1722262242760,-500.0,0.00010997,2]
[333590446,1722262242770,-500.0,0.00010997,2]
[333590448,1722262242780,-500.0,0.00010997,2]
[333590450,1722262242789,-2899.27,0.00010997,2]
[333590452,1722262242799,-500.0,0.00010997,2]
[333590454,1722262242809,-500.0,0.00010997,2]
[333590456,1722262242819,-779.19,0.00010997,2]
[333590458,1722262242829,-779.19,0.00010997,2]
[333590460,1722262242839,-500.0,0.00010997,2]
[333590462,1722262242849,-500.0,0.00010997,2]
[333590464,1722262242859,-500.0,0.00010997,2]
[333590466,1722262242869,-2928.97,0.00010997,2]
[333590468,1722262242879,-500.0,0.00010997,2]
[333590470,1722262242890,-500.0,0.00010997,2]
[333590472,1722262242900,-636.48,0.00010997,2]
[333590475,1722262242910,-500.0,0.00010997,2]
[333590477,1722262242920,-500.0,0.00010997,2]
[333590480,1722262242930,-500.0,0.00010997,2]
[333590482,1722262242939,-500.0,0.00010997,2]
[333590484,1722262242949,-500.0,0.00010997,2]
[333590486,1722262242958,-500.0,0.00010997,2]
[333590488,1722262242973,-644.55839793,0.00010997,2]
[333590490,1722262242983,-500.0,0.00010997,2]
[333590492,1722262242993,-500.0,0.00010997,2]
[333590494,1722262243003,-500.0,0.00010997,2]
[333590496,1722262243013,-500.0,0.00010997,2]
[333590498,1722262243024,-500.0,0.00010997,2]
[333590501,1722262243035,-1955.78,0.00010997,2]
[333590503,1722262243045,-500.0,0.00010997,2]
[333590505,1722262243054,-500.0,0.00010997,2]
[333590507,1722262243064,-500.0,0.00010997,2]
[333590509,1722262243074,-500.0,0.00010997,2]
[333590511,1722262243084,-500.0,0.00010997,2]
[333590513,1722262243095,-500.0,0.00010997,2]
[333590515,1722262243105,-829.66,0.00010997,2]
[333590517,1722262243115,-533.04,0.00010997,2]
[333590519,1722262243125,-533.04,0.00010997,2]
[333590521,1722262243136,-501.16388348,0.00010997,2]
[333590523,1722262243146,-500.0,0.00010997,2]
[333590525,1722262243156,-500.0,0.00010997,2]
[333590527,1722262243166,-500.0,0.00010997,2]
[333590529,1722262243177,-958.88,0.00010997,2]
[333590531,1722262243187,-958.88,0.00010997,2]
[333590533,1722262243198,-578.59,0.00010997,2]
[333590535,1722262243209,-500.0,0.00010997,2]
[333590538,1722262243223,-500.0,0.00010997,2]
[333590540,1722262243234,-540.71,0.00010997,2]
[333590542,1722262243244,-540.71,0.00010997,2]
[333590544,1722262243254,-585.8619569,0.00010997,2]
[333590546,1722262243265,-500.0,0.00010997,2]
[333590548,1722262243275,-500.0,0.00010997,2]
[333590550,1722262243285,-500.0,0.00010997,2]
[333590552,1722262243296,-688.53,0.00010997,2]
[333590554,1722262243306,-688.53,0.00010997,2]
[333590556,1722262243317,-3055.51,0.00010997,2]
[333590558,1722262243327,-3055.51,0.00010997,2]
[333590560,1722262243338,-500.0,0.00010997,2]
[333590562,1722262243348,-500.0,0.00010997,2]
[333590580,1722262243523,-500.0,0.00010997,2]
[333590582,1722262243533,-500.0,0.00010997,2]
[333590584,1722262243542,-500.0,0.00010997,2]
[333590586,1722262243551,-467.78,0.00010997,2]
[333590588,1722262243563,-199.5296,0.00010997,2]
[333590590,1722262243572,-500.0,0.00010997,2]
[333590592,1722262243582,-1025.11,0.00010997,2]
[333590594,1722262243591,-491.72,0.00010997,2]
[333590597,1722262243604,-500.0,0.00010997,2]
[333590599,1722262243614,-500.0,0.00010997,2]
[333590602,1722262243623,-500.0,0.00010997,2]
[333590605,1722262243633,-500.0,0.00010997,2]
[333590607,1722262243643,-500.0,0.00010997,2]
[333590610,1722262243652,-698.9,0.00010997,2]
[333590612,1722262243661,-1133.08,0.00010997,2]
[333590614,1722262243671,-698.9,0.00010997,2]
[333590616,1722262243681,-662.76,0.00010997,2]
[333590618,1722262243691,-1122.64,0.00010997,2]
[333590621,1722262243701,-1122.64,0.00010997,2]
[333590624,1722262243710,-500.0,0.00010997,2]
[333590627,1722262243725,-500.0,0.00010997,2]
[333590630,1722262243735,-500.0,0.00010997,2]
[333590633,1722262243744,-500.0,0.00010997,2]
[333590636,1722262243753,-378.2344,0.00010997,2]
[333590638,1722262243763,-500.0,0.00010997,2]
[333590640,1722262243772,-519.2550073,0.00010997,2]
[333590642,1722262243782,-500.0,0.00010997,2]
[333590644,1722262243791,-500.0,0.00010997,2]
[333590646,1722262243801,-500.0,0.00010997,2]
[333590648,1722262243810,-714.5,0.00010997,2]
[333590650,1722262243819,-714.5,0.00010997,2]
[333590652,1722262243829,-500.0,0.00010997,2]
[333590654,1722262243839,-3161.57,0.00010997,2]
[333590656,1722262243848,-3161.57,0.00010997,2]
[333590658,1722262243857,-363.47850511,0.00010997,2]
[333590660,1722262243866,-1233.04,0.00010997,2]
[333590662,1722262243875,-500.0,0.00010997,2]
[333590664,1722262243885,-500.0,0.00010997,2]
[333590666,1722262243894,-4369.33,0.00010997,2]
[333590668,1722262243903,-4369.33,0.00010997,2]
[333590670,1722262243912,-500.0,0.00010997,2]
[333590672,1722262243921,-500.0,0.00010997,2]
[333590673,1722262243931,-500.0,0.00010997,2]
[333590675,1722262243940,-500.0,0.00010997,2]
[333590677,1722262243952,-500.0,0.00010997,2]
[333590679,1722262243961,-500.0,0.00010997,2]
[333590681,1722262243976,-500.0,0.00010997,2]
[333590683,1722262243985,-500.0,0.00010997,2]
[333590685,1722262243994,-500.0,0.00010997,2]
[333590687,1722262244004,-500.0,0.00010997,2]
[333590689,1722262244015,-500.0,0.00010997,2]
[333590691,1722262244024,-500.0,0.00010997,2]
[333590693,1722262244034,-421.62,0.00010997,2]
[333590695,1722262244044,-500.0,0.00010997,2]
[333590697,1722262244053,-500.0,0.00010997,2]
[333590699,1722262244063,-392.93,0.00010997,2]
[333590701,1722262244072,-500.0,0.00010997,2]
[333590703,1722262244082,-500.0,0.00010997,2]
[333590705,1722262244091,-504.50682925,0.00010997,2]
[333590707,1722262244100,-500.0,0.00010997,2]
[333590709,1722262244110,-500.0,0.00010997,2]
[333590711,1722262244119,-570.8,0.00010997,2]
[333590713,1722262244129,-570.8,0.00010997,2]
[333590715,1722262244138,-500.0,0.00010997,2]
[333590717,1722262244148,-549.9437954,0.00010997,2]
[333590719,1722262244157,-500.0,0.00010997,2]